{"text_format":"1","workbook":"xlsx","n_sheets":9,"sheets":["BILANCIO_COLTURALE","CALCOLO","DB_PARAMETRI","DB_COLTURE","DB_COLTURE_NO_VENETO","DB_GIUDIZI_K","DB_GIUDIZI_P","DB_PRECESSIONI","DB_USDA_MAP"],"not_rendered":{"charts":0,"images":0,"macros":1,"external_links":0,"defined_names":13,"comments":0,"pivot_tables":0},"unopened":[],"bounds":{"document_bytes":16777216,"sheet_cells":100000,"rows_first":2000,"rows_last":500,"rows_between":2000,"halvings":0,"cell_chars":16384,"cell_head_chars":4096},"cells_cut":0,"cells_raw":0,"read":"whole","date_system":"1900"}

{"sheet":"BILANCIO_COLTURALE","index":0,"n_rows":63,"n_cols":6,"rows_kept":63,"cut":false,"hidden":false,"merged":[[38,0,38,2],[38,3,43,3],[53,3,53,4],[31,4,31,5],[50,4,51,5],[32,4,32,5],[33,4,33,5],[34,4,34,5],[0,0,0,5],[1,0,1,5],[11,0,11,5],[28,0,28,5],[13,4,13,5],[14,4,14,5],[15,4,15,5],[16,4,16,5],[17,4,17,5],[23,4,23,5],[24,4,24,5],[25,4,25,5],[3,0,3,5],[27,4,27,5],[18,4,18,5],[26,4,26,5],[57,1,57,2],[50,0,50,2],[49,0,49,2],[51,1,51,2],[52,1,52,2],[53,1,53,2],[55,1,55,2],[56,1,56,2],[19,4,19,5],[20,4,20,5],[21,4,21,5],[12,4,12,5],[52,3,52,4],[22,4,22,5],[29,4,29,5],[30,4,30,5]]}
["PIANO FERTILIZZAZIONE - Calcolo fabbisogni di N, P e K con il METODO BILANCIO COLTURALE (D.P.I. - Norme Generali cap. 2.9.2 e Allegato II)"]
["⚠️ INSERIRE LE INFORMAZIONI RICHIESTE NELLE CELLE CON IL TESTO BLU ⚠️"]
[]
["INFORMAZIONI GENERALI"]
["ANNO",null,2026,"Note: /","% azotofissazione proposta","% azotofissazione reale"]
["Superficie (ha)","ettari",1.55,"Azotofissazione (%)",{"$f":"IFERROR(INDEX(DB_COLTURE!$I$2:$I$428, MATCH(BILANCIO_COLTURALE!$C$8, DB_COLTURE!$B$2:$B$428, 0)), \"\")","v":0},0]
["Riferimenti area omogenea/appezzamento",null,"***NOME AREA/APPEZZAMENTO***",null,"Tipologia"]
["COLTURA",null,"Grano tenero biscottiero (granella)","Tipologia coltura e fase del ciclo produttivo",{"$f":"IFERROR(INDEX(DB_COLTURE!$A$2:$A$428, MATCH(BILANCIO_COLTURALE!$C$8, DB_COLTURE!$B$2:$B$428, 0)), \"\")","v":"ERBACEE"},"Produzione"]
["RESA PREVISTA","kg/ha",6000]
["Coltura in precessione",null,"Nessuna/Non Nota"]
[]
["ANALISI DEL TERRENO E GIUDIZIO"]
["Parametro","U.M.","Valore (DA INSERIRE)","Giudizio (vedi Norme Generali - Allegato I)","Note"]
["Argilla","%",15,"------------","Inserire valore da analisi terreno"]
["Sabbia","%",20,"------------","Inserire valore da analisi terreno"]
["Limo","%",{"$f":"IF(OR($C$14=\"\",$C$15=\"\"),\"\",MAX(0,100-$C$14-$C$15))","v":65},"------------","Campo automatico"]
["Classe USDA ","---",{"$f":"IF(ABS($C$15+$C$16+$C$14-100)>0.01,\"ERRORE: S+L+C≠100\",\nIF(\nSUM(\nIF(($C$16/100)+1.5*($C$14/100)<0.15,1,0),\nIF(AND(($C$16/100)+1.5*($C$14/100)>=0.15, ($C$16/100)+2*($C$14/100)<0.3),2,0),\nIF(OR(\nAND(($C$14/100)>=0.07, ($C$14/100)<0.2, ($C$15/100)>0.52, ($C$16/100)+2*($C$14/100)>=0.3),\nAND(($C$14/100)<0.07, ($C$16/100)<0.5, ($C$16/100)+2*($C$14/100)>=0.3)\n),3,0),\nIF(AND(($C$14/100)>=0.07, ($C$14/100)<0.27, ($C$16/100)>=0.28, ($C$16/100)<0.5, ($C$15/100)<=0.52),4,0),\nIF(OR(\nAND(($C$16/100)>=0.5, ($C$14/100)>=0.12, ($C$14/100)<0.27),\nAND(($C$16/100)>=0.5, ($C$16/100)<0.8, ($C$14/100)<0.12)\n),5,0),\nIF(AND(($C$16/100)>=0.8, ($C$14/100)<0.12),6,0),\nIF(AND(($C$14/100)>=0.2, ($C$14/100)<0.35, ($C$16/100)<0.28, ($C$15/100)>0.45),7,0),\nIF(AND(($C$14/100)>=0.27, ($C$14/100)<0.4, ($C$15/100)>0.2, ($C$15/100)<=0.45),8,0),\nIF(AND(($C$14/100)>=0.27, ($C$14/100)<0.4, ($C$15/100)<=0.2),9,0),\nIF(AND(($C$14/100)>=0.35, ($C$15/100)>0.45),10,0),\nIF(AND(($C$14/100)>=0.4, ($C$16/100)>=0.4),11,0),\nIF(AND(($C$14/100)>=0.4, ($C$15/100)<=0.45, ($C$16/100)<0.4),12,0)\n)\n=0,\"(non classificato)\",\nCHOOSE(\nSUM(\nIF(($C$16/100)+1.5*($C$14/100)<0.15,1,0),\nIF(AND(($C$16/100)+1.5*($C$14/100)>=0.15, ($C$16/100)+2*($C$14/100)<0.3),2,0),\nIF(OR(\nAND(($C$14/100)>=0.07, ($C$14/100)<0.2, ($C$15/100)>0.52, ($C$16/100)+2*($C$14/100)>=0.3),\nAND(($C$14/100)<0.07, ($C$16/100)<0.5, ($C$16/100)+2*($C$14/100)>=0.3)\n),3,0),\nIF(AND(($C$14/100)>=0.07, ($C$14/100)<0.27, ($C$16/100)>=0.28, ($C$16/100)<0.5, ($C$15/100)<=0.52),4,0),\nIF(OR(\nAND(($C$16/100)>=0.5, ($C$14/100)>=0.12, ($C$14/100)<0.27),\nAND(($C$16/100)>=0.5, ($C$16/100)<0.8, ($C$14/100)<0.12)\n),5,0),\nIF(AND(($C$16/100)>=0.8, ($C$14/100)<0.12),6,0),\nIF(AND(($C$14/100)>=0.2, ($C$14/100)<0.35, ($C$16/100)<0.28, ($C$15/100)>0.45),7,0),\nIF(AND(($C$14/100)>=0.27, ($C$14/100)<0.4, ($C$15/100)>0.2, ($C$15/100)<=0.45),8,0),\nIF(AND(($C$14/100)>=0.27, ($C$14/100)<0.4, ($C$15/100)<=0.2),9,0),\nIF(AND(($C$14/100)>=0.35, ($C$15/100)>0.45),10,0),\nIF(AND(($C$14/100)>=0.4, ($C$16/100)>=0.4),11,0),\nIF(AND(($C$14/100)>=0.4, ($C$15/100)<=0.45, ($C$16/100)<0.4),12,0)\n),\n\"SABBIOSO\",\"SABBIOSO FRANCO\",\"FRANCO SABBIOSO\",\"FRANCO\",\"FRANCO LIMOSO\",\"LIMOSO\",\n\"FRANCO ARGILLOSO SABBIOSO\",\"FRANCO ARGILLOSO\",\"FRANCO ARGILLOSO LIMOSO\",\n\"ARGILLOSO SABBIOSO\",\"ARGILLOSO LIMOSO\",\"ARGILLOSO\"\n)\n)\n)","v":"FRANCO LIMOSO"},"------------","Campo automatico"]
["Azoto totale","g/kg",1.77,{"$f":"IF($C$18=\"\",\"\",IF($C$18<0.5,\"MOLTO BASSA\",IF($C$18<=1,\"BASSA\",IF($C$18<=2,\"MEDIA\",IF($C$18<=2.5,\"ELEVATA\",\"MOLTO ELEVATA\")))))","v":"MEDIA"},"Inserire valore da analisi terreno"]
["Fosforo ","ppm P2O5",25,{"$f":"CALCOLO!D4","v":"NORMALE"},"Inserire valore da analisi terreno"]
["Metodo analisi P (scegliere tra Olsen / Bray-Kurtz)","---","Olsen","------------","------------"]
["Potassio ","ppm K2O",150,{"$f":"CALCOLO!D2","v":"MEDIO"},"Inserire valore da analisi terreno"]
["Calcare totale","g/kg",12.5,{"$f":"IF($C$22=\"\",\"\",IF($C$22<=10,\"NON CALCAREO\",IF($C$22<=100,\"POCO CALCAREO\",IF($C$22<=250,\"MEDIAMENTE CALCAREO\",IF($C$22<=500,\"CALCAREO\",\"MOLTO CALCAREO\")))))","v":"POCO CALCAREO"},"Inserire valore da analisi terreno"]
["Calcare attivo","g/kg",11.3,{"$f":"IF($C$23=\"\",\"\",IF($C$23<=10,\"BASSA\",IF($C$23<=50,\"MEDIA\",IF($C$23<=75,\"ELEVATA\",\"MOLTO ELEVATA\"))))","v":"MEDIA"},"Inserire valore da analisi terreno"]
["pH","---",7.7,{"$f":"IF($C$24=\"\",\"\",IF($C$24<5.4,\"FORTEMENTE ACIDO\",IF($C$24<=6,\"ACIDO\",IF($C$24<=6.7,\"LEGGERMENTE ACIDO\",IF($C$24<=7.3,\"NEUTRO\",IF($C$24<=8.1,\"LEGGERMENTE ALCALINO\",IF($C$24<=8.6,\"ALCALINO\",\"FORTEMENTE ALCALINO\")))))))","v":"LEGGERMENTE ALCALINO"},"Inserire valore da analisi terreno"]
["CSC","meq/100g",8.7100000000000009,{"$f":"IF($C$25=\"\",\"\",IF($C$25<10,\"BASSA\",IF($C$25<20,\"MEDIA\",\"ELEVATA\")))","v":"BASSA"},"Inserire valore da analisi terreno"]
["Sostanza organica","%",1.5,{"$f":"IF($C$26=\"\",\"\",\nIF(OR($C$17=\"SABBIOSO\",$C$17=\"SABBIOSO FRANCO\",$C$17=\"FRANCO SABBIOSO\"),\nIF($C$26<0.8,\"BASSO\",IF($C$26<=2,\"NORMALE\",\"ELEVATO\")),\nIF(OR($C$17=\"FRANCO\",$C$17=\"FRANCO LIMOSO\",$C$17=\"FRANCO ARGILLOSO\",$C$17=\"FRANCO ARGILLOSO SABBIOSO\"),\nIF($C$26<1,\"BASSO\",IF($C$26<=2.5,\"NORMALE\",\"ELEVATO\")),\nIF(OR($C$17=\"ARGILLOSO\",$C$17=\"ARGILLOSO LIMOSO\",$C$17=\"FRANCO ARGILLOSO LIMOSO\",$C$17=\"ARGILLOSO SABBIOSO\",$C$17=\"LIMOSO\"),\nIF($C$26<1.2,\"BASSO\",IF($C$26<=3,\"NORMALE\",\"ELEVATO\")),\n\"(classe non riconosciuta)\"\n))))","v":"NORMALE"},"Inserire valore da analisi terreno"]
["Rapporto C/N","---",{"$f":"IF(OR($C$26=\"\",$C$18=\"\",$C$18=0),\"\",($C$26*10)/(1.724*$C$18))","v":4.9156474890872621},{"$f":"IF($C$27=\"\",\"\",IF($C$27<9,\"BASSO (MINERALIZZAZIONE RAPIDA)\",IF($C$27<=12,\"MEDIO (MINERALIZZAZIONE NORMALE)\",\"ELEVATO (MINERALIZZAZIONE LENTA)\")))","v":"BASSO (MINERALIZZAZIONE RAPIDA)"},"Inserire valore da analisi terreno"]
[]
["ALTRI PARAMETRI NECESSARI AL CALCOLO DI N-P-K (D.P.I. Norme Generali - Allegato II)"]
["Parametro",null,"Valore","Info","Note"]
["Apporti azoto ubicazione GN (kg/ha anno)",null,"Pianura limitrofa zona urbanizzata",{"$f":"IFERROR(INDEX(DB_PARAMETRI!$B$46:$B$48, MATCH($C$31, DB_PARAMETRI!$A$46:$A$48, 0)), \"\")","v":20},"Selezionare un valore in base all'ubicazione"]
["Drenaggio (lisciviazione N)",null,"Normale",null,"Selezionare un valore in base alle condizioni del terreno"]
["Pioggia ott-gen (mm) (lisciviazione N)",null,200,null,"Inserire valore ricavato da stazione meteo aziendale/pubblica"]
["Metodo lisciviazione N (c1 oppure c2)",null,"c1_pioggia",{"$f":"IF($C$34=\"c1_pioggia\",\"CN da pioggia\",\"CN da drenaggio\")","v":"CN da pioggia"},"Selezionare metodo lisciviazione (erbacee). Nel caso di coltura arborea il valore non viene utilizzato dal foglio di calcolo"]
["Profondità riferimento terreno (cm)",null,30,null,"Selezionare la profondità considerata (30 o 40 centimetri)"]
[]
[]
[]
["APPORTI DI FERTILIZZANTI ORGANICI NELL'ANNO PRECEDENTE",null,null,"Parametro \"FN\" del bilancio dell'azoto (erbacee ed arboree)"]
["Tipologia","N tot (kg/ha)","Frequenza"]
[]
[]
[]
[]
[]
[]
[]
[]
[]
["FABBISOGNI STIMATI CON IL METODO DEL BILANCIO COLTURALE"]
["RISULTATI DA UTILIZZARE NEL PIANO DI FERTILIZZAZIONE",null,null,"MAS (limite massimo N)",{"$f":"IFERROR(IF(INDEX(DB_COLTURE!$M$2:$M$105,MATCH(BILANCIO_COLTURALE!$C$8,DB_COLTURE!$B$2:$B$105,0))=\"\",\"\",INDEX(DB_COLTURE!$M$2:$M$105,MATCH(BILANCIO_COLTURALE!$C$8,DB_COLTURE!$B$2:$B$105,0))),\"\")","v":""}]
["N netto (kg/ha)",{"$f":"IF(OR($E$8=\"ARBOREE\", $E$8=\"FORAGGERE\", $E$8=\"ORTICOLE_PLURIENNALI\", $E$8=\"PICCOLI_FRUTTI\"), IF(OR($F$8=\"Pre-impianto\",$F$8=\"Allevamento\",$F$8=\"Pre-semina\"), \"Vedi Scheda Norme Specifiche per Coltura\", CALCOLO!$B$35), CALCOLO!$B$35)","v":119.54499999999999},null,{"$f":"IFERROR(INDEX(DB_COLTURE!$L$2:$L$105, MATCH(BILANCIO_COLTURALE!$C$8, DB_COLTURE!$B$2:$B$105, 0)), \"\")","v":180}]
["P2O5 netto (kg/ha)",{"$f":"IF(OR($E$8=\"ARBOREE\", $E$8=\"FORAGGERE\", $E$8=\"ORTICOLE_PLURIENNALI\", $E$8=\"PICCOLI_FRUTTI\"), IF(OR($F$8=\"Pre-impianto\",$F$8=\"Allevamento\",$F$8=\"Pre-semina\"), \"Vedi Scheda Norme Specifiche per Coltura\", CALCOLO!$B$36), CALCOLO!$B$36)","v":58.8},null,"STIMA (ppm) P2O5 terreno fine ciclo (per piano successivo), con apporto pari a quello stimato",null,{"$f":"CALCOLO!B89","v":25}]
["K2O netto (kg/ha)",{"$f":"IF(OR($E$8=\"ARBOREE\", $E$8=\"FORAGGERE\", $E$8=\"ORTICOLE_PLURIENNALI\", $E$8=\"PICCOLI_FRUTTI\"), IF(OR($F$8=\"Pre-impianto\",$F$8=\"Allevamento\",$F$8=\"Pre-semina\"), \"Vedi Scheda Norme Specifiche per Coltura\", CALCOLO!$B$37), CALCOLO!$B$37)","v":66.599999999999994},null,"STIMA (ppm) K2O terreno fine ciclo (per piano successivo), con apporto pari a quello stimato",null,{"$f":"CALCOLO!B98","v":156.05693519079347}]
[]
["N totale (kg) - totale superficie",{"$f":"IF(OR($E$8=\"ARBOREE\", $E$8=\"FORAGGERE\", $E$8=\"ORTICOLE_PLURIENNALI\", $E$8=\"PICCOLI_FRUTTI\"), IF(OR($F$8=\"Pre-impianto\",$F$8=\"Allevamento\",$F$8=\"Pre-semina\"), \"Vedi Scheda Norme Specifiche per Coltura\", CALCOLO!$B$39), CALCOLO!$B$39)","v":185.29474999999999}]
["P2O5 totale (kg) - totale superficie",{"$f":"IF(OR($E$8=\"ARBOREE\", $E$8=\"FORAGGERE\", $E$8=\"ORTICOLE_PLURIENNALI\", $E$8=\"PICCOLI_FRUTTI\"), IF(OR($F$8=\"Pre-impianto\",$F$8=\"Allevamento\",$F$8=\"Pre-semina\"), \"Vedi Scheda Norme Specifiche per Coltura\", CALCOLO!$B$40), CALCOLO!$B$40)","v":91.14}]
["K2O totale (kg) - totale superficie",{"$f":"IF(OR($E$8=\"ARBOREE\", $E$8=\"FORAGGERE\", $E$8=\"ORTICOLE_PLURIENNALI\", $E$8=\"PICCOLI_FRUTTI\"), IF(OR($F$8=\"Pre-impianto\",$F$8=\"Allevamento\",$F$8=\"Pre-semina\"), \"Vedi Scheda Norme Specifiche per Coltura\", CALCOLO!$B$41), CALCOLO!$B$41)","v":103.22999999999999}]
[]
[null,"Fabbisogno calc.","Detrazione/arricchimento"]
["N netto (kg/ha)",{"$f":"CALCOLO!B29","v":168.6},{"$f":"-(B61-CALCOLO!B35)","v":-49.055000000000007}]
["P2O5 netto (kg/ha)",{"$f":"CALCOLO!B31","v":58.8},{"$f":"-(B62-CALCOLO!B36)","v":0}]
["K2O netto (kg/ha)",{"$f":"CALCOLO!B32","v":36.6},{"$f":"-(B63-CALCOLO!B37)","v":29.999999999999993}]

{"sheet":"CALCOLO","index":1,"n_rows":105,"n_cols":14,"rows_kept":105,"cut":false,"hidden":false,"merged":[[1,5,1,9]]}
["DATI PRINCIPALI","Valore",null,"Valore"]
["K_analisi (K2O)",{"$f":"IFERROR(IF(BILANCIO_COLTURALE!B21=\"ppm K2O\",BILANCIO_COLTURALE!C21,BILANCIO_COLTURALE!C21*1.205),\"\")","v":150},"Riportato da foglio BILANCIO_COLTURALE (con eventuale conversione in K2O se necessario)",{"$f":"IFERROR(IF(B2<INDEX(DB_GIUDIZI_K!C:C,MATCH(B18,DB_GIUDIZI_K!A:A,0)),\"BASSO\",IF(B2<=INDEX(DB_GIUDIZI_K!D:D,MATCH(B18,DB_GIUDIZI_K!A:A,0)),\"MEDIO\",\"ELEVATO\")),\"\")","v":"MEDIO"},null,"N organico precessione",null,null,null,null,null,null,null,{"$f":"IF($B$2=\"\",\"\",\nIF(OR($B$18=\"SABBIOSO\",$B$18=\"SABBIOSO FRANCO\",$B$18=\"FRANCO SABBIOSO\"),\nIF($B$2<96,\"BASSO\",IF($B$2<=144,\"NORMALE\",\"ELEVATO\")),\nIF(OR($B$18=\"FRANCO\",$B$18=\"FRANCO LIMOSO\",$B$18=\"FRANCO ARGILLOSO\",$B$18=\"FRANCO ARGILLOSO SABBIOSO\",$B$18=\"LIMOSO\"),\nIF($B$2<120,\"BASSO\",IF($B$2<=180,\"NORMALE\",\"ELEVATO\")),\nIF(OR($B$18=\"ARGILLOSO\",$B$18=\"ARGILLOSO LIMOSO\",$B$18=\"FRANCO ARGILLOSO LIMOSO\",$B$18=\"ARGILLOSO SABBIOSO\"),\nIF($B$2<155,\"BASSO\",IF($B$2<=216,\"NORMALE\",\"ELEVATO\")),\n\"(classe non riconosciuta)\"\n))))","v":"NORMALE"}]
["Argilla_%",{"$f":"BILANCIO_COLTURALE!C14","v":15},"Riportato da foglio BILANCIO_COLTURALE",null,null,{"$f":"BILANCIO_COLTURALE!A41:C44","v":0},0,0,{"$f":"IFERROR(INDEX(DB_PARAMETRI!$B$40:$E$42,MATCH($F3,DB_PARAMETRI!$A$40:$A$42,0),MATCH(H3,DB_PARAMETRI!B39:E39,0)),\"0\")","v":"0"},{"$f":"G3*I3","v":0}]
["P_analisi (P2O5)",{"$f":"IFERROR(IF(BILANCIO_COLTURALE!B19=\"ppm P2O5\",BILANCIO_COLTURALE!C19,BILANCIO_COLTURALE!C19*2.291),\"\")","v":25},"Riportato da foglio BILANCIO_COLTURALE (con eventuale conversione in P2O5 se necessario)",{"$f":"IF($B$4=\"\",\"\",IFERROR(\nIF($B$4<=INDEX(DB_GIUDIZI_P!$B$2:$B$3,IF($B$9=\"Olsen\",1,2)),\"MOLTO BASSO\",\nIF($B$4<=INDEX(DB_GIUDIZI_P!$C$2:$C$3,IF($B$9=\"Olsen\",1,2)),\"BASSO\",\nIF($B$4<=INDEX(DB_GIUDIZI_P!$D$2:$D$3,IF($B$9=\"Olsen\",1,2)),\"NORMALE\",\nIF($B$4<=INDEX(DB_GIUDIZI_P!$E$2:$E$3,IF($B$9=\"Olsen\",1,2)),\"ELEVATO\",\n\"MOLTO ELEVATO\"\n)))),\"\"))","v":"NORMALE"},null,0,0,0,{"$f":"IFERROR(INDEX(DB_PARAMETRI!$B$40:$E$42,MATCH($F4,DB_PARAMETRI!$A$40:$A$42,0),MATCH(H4,DB_PARAMETRI!B40:E40,0)),\"0\")","v":"0"},{"$f":"G4*I4","v":0}]
["N_tot_gkg",{"$f":"BILANCIO_COLTURALE!C18","v":1.77},"Riportato da foglio BILANCIO_COLTURALE",null,null,0,0,0,{"$f":"IFERROR(INDEX(DB_PARAMETRI!$B$40:$E$42,MATCH($F5,DB_PARAMETRI!$A$40:$A$42,0),MATCH(H5,DB_PARAMETRI!B41:E41,0)),\"0\")","v":"0"},0]
["Calcare_tot_g_kg",{"$f":"BILANCIO_COLTURALE!C22","v":12.5},"Riportato da foglio BILANCIO_COLTURALE",null,null,0,0,0,{"$f":"IFERROR(INDEX(DB_PARAMETRI!$B$40:$E$42,MATCH($F6,DB_PARAMETRI!$A$40:$A$42,0),MATCH(H6,DB_PARAMETRI!B42:E42,0)),\"0\")","v":"0"},0]
["SO_%",{"$f":"BILANCIO_COLTURALE!C26","v":1.5},"Riportato da foglio BILANCIO_COLTURALE",null,null,null,null,null,null,{"$f":"SUM(J3:J6)","v":0},"Totale organici anni precedenti"]
["C/N",{"$f":"BILANCIO_COLTURALE!C27","v":4.9156474890872621},"Riportato da foglio BILANCIO_COLTURALE"]
["Metodo_P",{"$f":"BILANCIO_COLTURALE!C20","v":"Olsen"},"Riportato da foglio BILANCIO_COLTURALE"]
["Drenaggio",{"$f":"BILANCIO_COLTURALE!C32","v":"Normale"},"Riportato da foglio BILANCIO_COLTURALE"]
["Pioggia_OttGen_mm",{"$f":"BILANCIO_COLTURALE!C33","v":200},"Riportato da foglio BILANCIO_COLTURALE"]
["Profondità_cm",{"$f":"BILANCIO_COLTURALE!C35","v":30},"Riportato da foglio BILANCIO_COLTURALE"]
["Precessione",{"$f":"BILANCIO_COLTURALE!C10","v":"Nessuna/Non Nota"},"Riportato da foglio BILANCIO_COLTURALE"]
["Da_densità",{"$f":"IFERROR(INDEX(DB_PARAMETRI!$D$3:$D$5, MATCH(B19, DB_PARAMETRI!$A$3:$A$5, 0)), 1.3)","v":1.3},"Riportato da foglio BILANCIO_COLTURALE"]
["Arborea vero/falso",{"$f":"BILANCIO_COLTURALE!E8","v":"ERBACEE"},"Riportato da foglio BILANCIO_COLTURALE"]
["Fase",{"$f":"BILANCIO_COLTURALE!F8","v":"Produzione"},"Riportato da foglio BILANCIO_COLTURALE"]
["Scelta metodo CN erbacee",{"$f":"BILANCIO_COLTURALE!C34","v":"c1_pioggia"},"Riportato da foglio BILANCIO_COLTURALE"]
["Tessitura USDA",{"$f":"BILANCIO_COLTURALE!C17","v":"FRANCO LIMOSO"},"Riportato da foglio BILANCIO_COLTURALE"]
["Tessitura raggruppamento N",{"$f":"IFERROR(INDEX(DB_USDA_MAP!$C$2:$C$13, MATCH(B18, DB_USDA_MAP!$A$2:$A$13, 0)), \"\")","v":"Franco"},"Riportato da foglio BILANCIO_COLTURALE"]
["Produzione",{"$f":"BILANCIO_COLTURALE!C9","v":6000},"Riportato da foglio BILANCIO_COLTURALE"]
["t (auto)",{"$f":"IFERROR(INDEX(DB_COLTURE!$K$2:$K$428, MATCH(BILANCIO_COLTURALE!$C$8, DB_COLTURE!$B$2:$B$428, 0)),\"\")","v":0.6},"Riportato da foglio BILANCIO_COLTURALE"]
["MAS_N_limite",{"$f":"IFERROR(INDEX(DB_COLTURE!$L$2:$L$428, MATCH(BILANCIO_COLTURALE!$C$8, DB_COLTURE!$B$2:$B$428, 0)),\"\")","v":180},"Riportato da foglio BILANCIO_COLTURALE"]
[]
["Lettura coefficienti ASP/ASS","Valore ASP/ASS"]
["Coeff_N",{"$f":"IFERROR(INDEX(DB_COLTURE!$E$2:$E$428, MATCH(BILANCIO_COLTURALE!$C$8, DB_COLTURE!$B$2:$B$428, 0)), \"\")","v":2.81}]
["Coeff_P2O5",{"$f":"IFERROR(INDEX(DB_COLTURE!$F$2:$F$428, MATCH(BILANCIO_COLTURALE!$C$8, DB_COLTURE!$B$2:$B$428, 0)), \"\")","v":0.98}]
["Coeff_K2O",{"$f":"IFERROR(INDEX(DB_COLTURE!$G$2:$G$428, MATCH(BILANCIO_COLTURALE!$C$8, DB_COLTURE!$B$2:$B$428, 0)), \"\")","v":0.61}]
[]
["N_domanda",{"$f":"IF(OR(BILANCIO_COLTURALE!$C$9=\"\",B20=\"\",B25=\"\"),0,B20*B25/100)+IFERROR(IF(INDEX(DB_COLTURE!H:H,MATCH(BILANCIO_COLTURALE!C8,DB_COLTURE!B:B,0))=\"ASP\",INDEX(DB_COLTURE!N:N,MATCH(BILANCIO_COLTURALE!C8,DB_COLTURE!B:B,0)),0),0)","v":168.6}]
["N_domanda azoto fissazione",{"$f":"B29-B48","v":168.6}]
["P2O5_domanda",{"$f":"IF(OR(BILANCIO_COLTURALE!$C$9=\"\", BILANCIO_COLTURALE!$C$8=\"\", B26=\"\"), 0, BILANCIO_COLTURALE!$C$9 * B26 / 100)","v":58.8}]
["K2O_domanda",{"$f":"IF(OR(BILANCIO_COLTURALE!$C$9=\"\", BILANCIO_COLTURALE!$C$8=\"\", B27=\"\"), 0, BILANCIO_COLTURALE!$C$9 * B27 / 100)","v":36.6}]
[]
["Quantità calcolate","Valore calcolato","Valore Netto"]
["N_netto_kg_ha",{"$f":"B74","v":119.54499999999999}]
["P2O5_netto_kg_ha",{"$f":"B87","v":58.8}]
["K2O_netto_kg_ha",{"$f":"B97","v":66.599999999999994}]
[]
["N_totale_kg",{"$f":"B35 * BILANCIO_COLTURALE!$C$6","v":185.29474999999999}]
["P2O5_totale_kg",{"$f":"B36 * BILANCIO_COLTURALE!$C$6","v":91.14}]
["K2O_totale_kg",{"$f":"B37 * BILANCIO_COLTURALE!$C$6","v":103.22999999999999}]
[]
["Calcolo N","Valore"]
["cap massimo N azotofissazione",{"$f":"IFERROR(INDEX(DB_COLTURE!$C$2:$C$428, MATCH(BILANCIO_COLTURALE!$C$8, DB_COLTURE!$B$2:$B$428, 0)), \"\")","v":0},"kg/ha"]
["% azotofissazione utente",{"$f":"BILANCIO_COLTURALE!F6/100","v":0}]
["coeff ASS corretto",{"$f":"IFERROR(INDEX(DB_COLTURE!$D$2:$D$428, MATCH(BILANCIO_COLTURALE!$C$8, DB_COLTURE!$B$2:$B$428, 0)), \"\")","v":0},"viene letta la colonna specifica in DB_COLTURE"]
["N_calcolato_corretto",{"$f":"IF(OR(BILANCIO_COLTURALE!$C$9=\"\", B20=\"\", B46=\"\"), 0, B20 * B46/100)","v":0},"kg/ha utilizzati per calcolo azotofissazione"]
["N_fissato",{"$f":"IF(OR($B$45=\"\",$B$47=\"\",$B$44=\"\"),\"\",MIN($B$47*$B$45,$B$44))","v":0},"N fissato cappato (B44)"]
["N_domanda netto azotofissazione",{"$f":"IF(OR($B$45=\"\",$B$47=\"\",$B$44=\"\"),\"\",MAX(0,$B$29 - MIN($B$47*$B$45,$B$44)))","v":168.6}]
[]
["___b1_N_pronto",{"$f":"IF(B5=\"\",0, IFERROR(INDEX(DB_PARAMETRI!$C$3:$C$5, MATCH(B19, DB_PARAMETRI!$A$3:$A$5, 0)),0) * B5)","v":46.02}]
["Classe_CN",{"$f":"IF(B8=\"\",\"\", IF(B8<9,\"<9\", IF(B8>12,\">12\",\"9-12\")))","v":"<9"}]
["coeff_Nmin",{"$f":"IF(OR(B19=\"\",B52=\"\"),0, IFERROR(VLOOKUP(B19&\"|\"&B52, DB_PARAMETRI!$F$9:$G$17, 2, FALSE),0))","v":26}]
["______N_1anno",{"$f":"B53 * IF(B7=\"\",0,B7)","v":39}]
["___b2_mineralizzato",{"$f":"B54 * B21","v":23.4}]
["BN_fertilità_suolo",{"$f":"IF(B15=\"ARBOREE\",B55,B51+B55)","v":69.42}]
[]
["CN_c2",{"$f":"IFERROR(INDEX(DB_PARAMETRI!$B$21:$D$23, MATCH(B10, DB_PARAMETRI!$A$21:$A$23,0), IF(B19=\"Tendenzialmente sabbioso\",1, IF(B19=\"Franco\",2,3))),0)","v":30}]
["CN_c1_erbacee (step intermedio)",{"$f":"IF($B$11=\"\",\"\",IF($B$11<150,0%,IF($B$11>250,100%,($B$11-150)/100)))","v":0.5}]
["CN_c1 erbacee (kg/ha)",{"$f":"B59*B51","v":23.01}]
["CN_arboree (kg/ha)",{"$f":"IF($B$11=\"\",\"\",IF($B$11<150,0,IF($B$11>250,30,(30*($B$11-150))/100)))","v":15}]
["CN_lisciviazione",{"$f":"IF(B15=\"ARBOREE\", B61, IF(B17=\"c2_drenaggio\", B58, B60))","v":23.01}]
[]
["fc_dispersione",{"$f":"IFERROR(INDEX(DB_PARAMETRI!$B$26:$D$29, MATCH(B10, DB_PARAMETRI!$A$26:$A$29,0), IF(B19=\"Tendenzialmente sabbioso\",1, IF(B19=\"Franco\",2,3))),0)","v":0.25}]
["DN_dispersione",{"$f":"B56 * B64","v":17.355}]
[]
["EN_precessione",{"$f":"IFERROR(INDEX(DB_PRECESSIONI!$B$3:$B$201, MATCH(BILANCIO_COLTURALE!$C$10, DB_PRECESSIONI!$A$3:$A$201,0)),0)","v":0}]
[]
["FN_organici_prev",{"$f":"J7","v":0}]
[]
["___GN_kg_ha_anno",{"$f":"BILANCIO_COLTURALE!D31","v":20}]
["GN_kg_ha_t_coltura",{"$f":"B71*B21","v":12}]
[]
["N_apporto",{"$f":"MAX(0,IF($B$15=\"ARBOREE\", $B$30-$B$56+$B$62+$B$65-$B$69-$B$71, $B$30-$B$56+$B$62+$B$65-$B$67-$B$69-$B$71))","v":119.54499999999999}]
["MAS",{"$f":"IFERROR(INDEX(DB_COLTURE!$L$2:$L$105, MATCH(BILANCIO_COLTURALE!C8, DB_COLTURE!$B$2:$B$105, 0)), \"\")","v":180}]
["N_apporto calcolato con MAX MAS",{"$f":"IF(B74<=$B$75,B74,$B$75)","v":119.54499999999999}]
[]
["Calcolo P","Valore"]
[]
["P_const",{"$f":"IF(B12=40,4,3)","v":3},"costante da profondità suolo"]
["___P_lim_inf",{"$f":"IFERROR(INDEX(DB_GIUDIZI_P!$C$2:$C$3, MATCH(B9, DB_GIUDIZI_P!$A$2:$A$3,0)),0)","v":22.9}]
["___P_lim_sup",{"$f":"IFERROR(INDEX(DB_GIUDIZI_P!$E$2:$E$3, MATCH(B9, DB_GIUDIZI_P!$A$2:$A$3,0)),0)","v":68.7}]
["BP_fertilità",{"$f":"IF(B4=\"\",0, IF(B4<B81, B80*B14*(B81-B4), IF(B4>B82, -B80*B14*(B4-B82), 0)))","v":0},"Apporto da fertilità P2O5 dotazioni suolo (Q*Da*P)"]
["___a_CP",{"$f":"IFERROR(INDEX(DB_PARAMETRI!$E$3:$E$5, MATCH(B19, DB_PARAMETRI!$A$3:$A$5, 0)), 1.3)","v":1.3},"fattore legato al tipo di suolo"]
["CP_coeff",{"$f":"B84 + 0.002*B6","v":1.325},"coefficiente adeguamento apporti P2O5 (se positivo), per stimare non disponibilità P a causa calcare totale"]
[]
["P_apporto",{"$f":"MAX(0, B31 + IF(B83>0, B83*B85, B83))","v":58.8}]
["P_giudizio",{"$f":"BILANCIO_COLTURALE!D19","v":"NORMALE"}]
["Dotazioni P2O5 fine ciclo",{"$f":"IF(OR($B$4=\"\",$B$12=\"\",$B$14=\"\",$B$6=\"\",$B$84=\"\"),\"\",MAX(0,$B$4+(($B$87-$B$31)/(0.1*$B$14*$B$12))/B85))","v":25},"(apporti-asportazioni)*coefficiente CP (il tutto poi trasformato in ppm) - Pfinale​=max(0;P0​+ΔPppm​)"]
[]
["Calcolo K","Valore"]
["___Q",{"$f":"IF($B$2=\"\",\"\",IFERROR(\nIF($B$2<INDEX(DB_GIUDIZI_K!$C$2:$C$13,MATCH($B$18,DB_GIUDIZI_K!$A$2:$A$13,0)),\n   INDEX(DB_GIUDIZI_K!$C$2:$C$13,MATCH($B$18,DB_GIUDIZI_K!$A$2:$A$13,0))-$B$2,\nIF($B$2>INDEX(DB_GIUDIZI_K!$D$2:$D$13,MATCH($B$18,DB_GIUDIZI_K!$A$2:$A$13,0)),\n   INDEX(DB_GIUDIZI_K!$D$2:$D$13,MATCH($B$18,DB_GIUDIZI_K!$A$2:$A$13,0))-$B$2,\n0\n)),\"\"))","v":0},"Fattore per calcolare Bk"]
["Bk",{"$f":"B92*B80*B14","v":0},"Apporto da fertilità K2O dotazioni suolo (Q*Da*P)"]
["DK_coeff",{"$f":"1 + 0.018*B3","v":1.27},"Fattore immobilizzazione (1+(0,018*argilla%)"]
["Ck",{"$f":"IF(B3=\"\",\"\",IF(B3<=5,60,IF(B3<=15,30,IF(B3<=25,20,10))))","v":30},"Lisciviazione (valori fissi in intervalli argilla%)"]
[]
["K_apporto",{"$f":"MAX(0, B32+(B94*B93)+B95)","v":66.599999999999994}]
["Dotazioni K2O fine ciclo",{"$f":"IF(OR($B$2=\"\",$B$12=\"\",$B$14=\"\",$B$94=\"\"),\"\",MAX(0,$B$2 + (($B$97-$B$32)/(0.1*$B$14*$B$12))/$B$94))","v":156.05693519079347},"(apporti-asportazioni)*coefficiente Dk (il tutto poi trasformato in ppm)"]
[]
[]
[]
[]
[]
[]
["Produzione stimata",{"$f":"IFERROR(INDEX(DB_COLTURE!$J$2:$J$428, MATCH(BILANCIO_COLTURALE!$C$8, DB_COLTURE!$B$2:$B$428, 0)), \"\")","v":6000}]

{"sheet":"DB_PARAMETRI","index":2,"n_rows":62,"n_cols":7,"rows_kept":62,"cut":false,"hidden":true,"merged":[[44,0,44,4],[37,0,37,4],[0,0,0,4],[6,0,6,6],[18,0,18,4],[24,0,24,4]]}
["Azoto pronto b1 e Fosforo fattore CP e classe K"]
["Tessitura_input","Classe_K","b1_coeff (x N_tot g/kg)","Densità apparente Da","Fattore Cp"]
["Tendenzialmente sabbioso","Sabbioso",28.4,1.4,1.2]
["Franco","Medio impasto",26,1.3,1.3]
["Tendenzialmente argilloso","Argilloso/limoso",24.3,1.2,1.4]
[]
["Azoto pronto b2"]
["Tessitura_input","Classe C/N","coeff_Nmin (x SO%)",null,null,"key","coeff_Nmin"]
["Tendenzialmente sabbioso","9-12",36,null,null,"Tendenzialmente sabbioso|9-12",36]
["Franco","9-12",24,null,null,"Franco|9-12",24]
["Tendenzialmente argilloso","9-12",12,null,null,"Tendenzialmente argilloso|9-12",12]
["Tendenzialmente sabbioso","<9",42,null,null,"Tendenzialmente sabbioso|<9",42]
["Franco","<9",26,null,null,"Franco|<9",26]
["Tendenzialmente argilloso","<9",18,null,null,"Tendenzialmente argilloso|<9",18]
["Tendenzialmente sabbioso",">12",24,null,null,"Tendenzialmente sabbioso|>12",24]
["Franco",">12",20,null,null,"Franco|>12",20]
["Tendenzialmente argilloso",">12",6,null,null,"Tendenzialmente argilloso|>12",6]
[]
["Azoto lisciviazione c2"]
["Drenaggio","CN_c2_sabbioso","CN_c2_franco","CN_c2_argilloso"]
["Lento o impedito",50,40,50]
["Normale",40,30,20]
["Rapido",50,40,30]
[]
["Azoto immobilizzazione e dispersione"]
["Drenaggio","fc_sabbioso","fc_franco","fc_argilloso"]
["Lento o impedito",0.3,0.35,0.4]
["Normale",0.2,0.25,0.3]
["Rapido",0.15,0.2,0.25]
[]
[]
["Arboree","Foraggere","Erbacee","Orticole","Orticole pluriennali","Frutti minori","Baby leaf"]
["Produzione","Produzione","Produzione","Produzione","Produzione","Produzione","Produzione"]
["Pre-Impianto","Pre-semina",null,null,"Pre-impianto","Pre-impianto"]
["Allevamento"]
[]
[]
["Fertilizzazioni organiche anno precedente"]
["Tipologia","Tutti gli anni","Ogni 2 anni","Ogni 3 anni","Saltuario"]
["Materiali con finalità ammendanti",0.5,0.3,0.2,0.2]
["Liquame bovino",0.3,0.15,0.1,0]
["Liquame suino e pollina",0.15,0.1,0.05,0]
[]
[]
["GN"]
["Pianura limitrofa zona urbanizzata",20]
["Pianura lontana zona urbanizzata",15]
["Collina e montagna",10]
[]
[]
["Profondità considerata"]
[30]
[40]
[]
[]
["Fosforo"]
["ppm P"]
["ppm P2O5"]
[]
["Potassio"]
["ppm K"]
["ppm K2O"]

{"sheet":"DB_COLTURE","index":3,"n_rows":105,"n_cols":14,"rows_kept":105,"cut":false,"hidden":true,"merged":[]}
["Gruppo colturale","Coltura","Fissazione max N","N_coeff_ASS","N_coeff","P2O5_coeff","K2O_coeff","Colonna1","%_azotofissazione","Resa riferimento","coeff_t","MAS_N_max_kg_ha","Note","QUOTA BASE"]
["ARBOREE","Actinidia frutti, legno e foglie",null,null,0.59,0.16,0.5,"ASS",0,30000,1,150]
["ARBOREE","Albicocco frutti, legno e foglie",null,null,0.55000000000000004,0.13,0.5,"ASS",0,16000,1,135]
["ARBOREE","Castagno frutti, legno e foglie",null,null,1.03,0.3,0.9,"ASS",0,5000,1,110]
["ARBOREE","Ciliegio frutti, legno e foglie",null,null,0.67,0.22,0.5,"ASS",0,9000,1,120]
["ARBOREE","Melo frutti, legno e foglie",null,null,0.28999999999999998,0.08,0.3,"ASS",0,40000,1,120]
["ARBOREE","Nettarine frutti, legno e foglie",null,null,0.64,0.14000000000000001,0.5,"ASS",0,25000,1,175]
["ARBOREE","Nocciolo frutti, legno e foglie",null,null,3.1,1.35,2.9,"ASS",0,1500,1,100]
["ARBOREE","Noce da frutto frutti, legno e foglie",null,null,3.2,1,1.3,"ASS",0,4000,1,120]
["ARBOREE","Olivo olive, legno e foglie",null,null,2.48,0.48,2,"ASS",0,4000,1,130]
["ARBOREE","Pero frutti, legno e foglie",null,null,0.33,0.08,0.3,"ASS",0,35000,1,120]
["ARBOREE","Pesco frutti, legno e foglie",null,null,0.57999999999999996,0.17,0.5,"ASS",0,25000,1,175]
["ARBOREE","Susino frutti, legno e foglie",null,null,0.49,0.1,0.49,"ASS",0,25000,1,120]
["ARBOREE","Vite per uva da vino (collina e montagna) grappoli, tralci e foglie",null,null,0.56999999999999995,0.26,0.67,"ASS",0,15000,1,100]
["ARBOREE","Vite per uva da vino (pianura) grappoli, legno e foglie",null,null,0.62,0.28000000000000003,0.74,"ASS",0,18000,1,100]
["BABY_LEAF","Lattuga (baby leaf)",null,null,0.27,0.08,0.4,"ASP",0,10000,0.3,40,"Per singolo ciclo"]
["BABY_LEAF","Rucola 1° taglio (baby leaf)",null,null,0.43,0.13,0.4,"ASP",0,10000,0.3,40,"Per singolo ciclo"]
["BABY_LEAF","Rucola 2° taglio (baby leaf)",null,null,0.54,0.15,0.6,"ASP",0,32000,0.3,40,"Per singolo ciclo"]
["BABY_LEAF","Spinacio (baby leaf)",null,null,0.34,0.13,0.7,"ASP",0,11500,0.3,40,"Per singolo ciclo"]
["BABY_LEAF","Valerianella (baby leaf)",null,null,0.49,0.15,0.5,"ASP",0,11500,0.3,40,"Per singolo ciclo"]
["BABY_LEAF","Baby leaf generica",null,null,0.39,0.12,0.5,"ASP",0,11500,0.3,40,"Per singolo ciclo"]
["ERBACEE","Barbabietola da zucchero (pianta intera)",null,null,0.31,0.14000000000000001,0.33,"ASP",0,70000,0.67,160]
["ERBACEE","Barbabietola da zucchero (radici)",null,null,0.22,0.14000000000000001,0.21,"ASP",0,50000,0.67,160]
["ERBACEE","Colza",null,null,3.39,1.28,0.99,"ASP",0,2500,0.6,150]
["ERBACEE","Colza pianta intera",null,null,6.21,2.66,7.86,"ASS",0,2500,0.6,150]
["ERBACEE","Girasole (acheni)",null,null,2.8,1.24,1.1499999999999999,"ASP",0,3000,0.75,120]
["ERBACEE","Girasole (pianta intera)",null,null,4.3099999999999996,1.9,8.51,"ASS",0,3000,0.75,120]
["ERBACEE","Grano duro (granella)",null,null,3.11,0.85,0.59,"ASP",0,6000,0.6,190]
["ERBACEE","Grano duro (pianta intera)",null,null,3.11,1.06,1.99,"ASS",0,6000,0.6,190]
["ERBACEE","Grano tenero FF (granella)",null,null,3.11,0.87,0.53,"ASP",0,6000,0.6,180]
["ERBACEE","Grano tenero FF (pianta intera)",null,null,3.11,1.06,1.99,"ASS",0,6000,0.6,180]
["ERBACEE","Grano tenero biscottiero (granella)",null,null,2.81,0.98,0.61,"ASP",0,6000,0.6,180]
["ERBACEE","Grano tenero biscottiero pianta intera",null,null,2.81,1.19,2.29,"ASS",0,6000,0.6,180]
["ERBACEE","Grano tenero FF/FPS (granella)",null,null,2.96,0.78,0.5,"ASP",0,6000,0.6,180]
["ERBACEE","Grano tenero FF/FPS (pianta intera)",null,null,2.96,0.98,1.87,"ASS",0,6000,0.6,180]
["ERBACEE","Mais da granella (granella)",null,null,2.27,0.69,0.38,"ASP",0,12000,0.75,280,"Ridurre del 20% se coltura in asciutta o semina tardiva dopo erbaio invernale"]
["ERBACEE","Mais da granella (pianta intera)",null,null,2.27,1,2.23,"ASS",0,12000,0.75,280,"Ridurre del 20% se coltura in asciutta o semina tardiva dopo erbaio invernale"]
["ERBACEE","Mais trinciato",null,null,0.39,0.15,0.33,"ASP",0,50000,0.75,280,"Ridurre del 20% se coltura in asciutta o semina tardiva dopo erbaio invernale"]
["ERBACEE","Orzo (granella)",null,null,1.81,0.8,0.52,"ASP",0,6500,0.6,150]
["ERBACEE","Orzo (pianta intera)",null,null,2.2400000000000002,0.98,1.89,"ASS",0,6500,0.6,150]
["ERBACEE","Riso (granella)",null,null,1.38,0.7,0.55000000000000004,"ASP",0,7000,0.67,160]
["ERBACEE","Riso (granella+paglia)",null,null,2.0299999999999998,0.92,2.0699999999999998,"ASS",0,7000,0.67,160]
["ERBACEE","Soia (granella)",180,6.3,5.82,1.36,2.0099999999999998,"ASP",75,3500,0.75,30,"Solo in presemina o in copertura immediatamente dopo la semina"]
["ERBACEE","Soia (pianta intera)",180,6.3,6.3,1.76,3.05,"ASS",75,3500,0.75,30,"Solo in presemina o in copertura immediatamente dopo la semina"]
["ERBACEE","Sorgo da foraggio",null,null,0.3,0.1,0.35,"ASS",0,0,0.75,220,"Ridurre del 45% se succede cereale autunno vernino"]
["ERBACEE","Sorgo da granella (solo granella)",null,null,1.59,0.73,0.43,"ASP",0,7500,0.75,220,"Ridurre del 45% se succede cereale autunno vernino"]
["ERBACEE","Sorgo da granella (pianta intera)",null,null,2.4700000000000002,0.95,1.57,"ASS",0,7500,0.75,220,"Ridurre del 45% se succede cereale autunno vernino"]
["ERBACEE","Tabacco Bright",null,null,2,0.6,3.5,"ASP",0,0,0.75,200]
["ERBACEE","Tabacco Bright pianta intera",null,null,2.62,1.04,4.09,"ASS",0,0,0.75,200]
["ERBACEE","Tabacco Burley",null,null,3.37,0.3,3.7,"ASP",0,0,0.75,200]
["ERBACEE","Tabacco Burley pianta intera",null,null,3.71,0.62,5.1100000000000003,"ASS",0,0,0.75,200]
["FORAGGERE","Erba medica",200,2.06,2.06,0.53,2.0299999999999998,"ASP",90,12500,1,0]
["FRUTTI_MINORI","Lampone",null,null,0.16,0.12,0.2,"ASP",0,0,1,110]
["FRUTTI_MINORI","Lampone biomassa epigea",null,null,0.3,0.3,0.7,"ASS",0,0,1,110]
["FRUTTI_MINORI","Mirtillo",null,null,0.14000000000000001,7.0000000000000007E-2,0.1,"ASP",0,17000,1,115]
["FRUTTI_MINORI","Mirtillo biomassa epigea",null,null,0.3,0.2,0.5,"ASS",0,0,1,115]
["FRUTTI_MINORI","Ribes",null,null,0.14000000000000001,0.1,0.4,"ASP",0,0,1,110]
["FRUTTI_MINORI","Ribes biomassa epigea",null,null,0.4,0.4,1,"ASS",0,0,1,110]
["FRUTTI_MINORI","uva spina biomassa epigea",null,null,0.3,0.3,0.6,"ASS",0,0,1,110]
["FRUTTI_MINORI","Rovo inerme",null,null,0.21,0.11,0.3,"ASP",0,0,1,140]
["FRUTTI_MINORI","Rovo inerme biomassa epigea",null,null,0.4,0.4,0.7,"ASS",0,0,1,140]
["ORTICOLE","Mais dolce (spighe)",null,null,0.85,0.42,0.23,"ASP",0,8000,0.75,170,"Ridurre del 20% se coltura in asciutta o semina tardiva dopo erbaio invernale"]
["ORTICOLE","Mais dolce (pianta intera)",null,null,1.42,0.54,0.98,"ASS",0,8000,0.75,170,"Ridurre del 20% se coltura in asciutta o semina tardiva dopo erbaio invernale"]
["ORTICOLE","Aglio",null,null,1.08,0.27,0.95,"ASP",0,9000,0.6,170]
["ORTICOLE","Basilico",null,null,0.37,0.13,0.39,"ASP",0,20000,0.5,110]
["ORTICOLE","Bietola da coste",null,null,0.46,0.19,0.56999999999999995,"ASP",0,25000,0.5,190]
["ORTICOLE","Bietola da foglie",null,null,0.54,0.3,0.55000000000000004,"ASP",0,25000,0.5,280]
["ORTICOLE","Broccolo",null,null,0.52,0.17,0.56999999999999995,"ASP",0,20000,0.5,180]
["ORTICOLE","Cappuccio",null,null,0.53,0.19,0.53,"ASP",0,27000,0.5,250]
["ORTICOLE","Carota",null,null,0.41,0.16,0.69,"ASP",0,50000,0.5,195]
["ORTICOLE","Cavolfiore",null,null,0.47,0.15,0.56000000000000005,"ASP",0,35000,0.5,225]
["ORTICOLE","Cetriolo",null,null,0.18,0.09,0.25,"ASP",0,120000,0.5,225]
["ORTICOLE","Cicoria",null,null,0.44,0.32,0.88,"ASP",0,28000,0.5,210]
["ORTICOLE","Cipolla",null,null,0.31,0.12,0.32,"ASP",0,45000,0.5,160]
["ORTICOLE","Cocomero",null,null,0.19,0.12,0.28999999999999998,"ASP",0,60000,0.5,130]
["ORTICOLE","Endivie (indivie riccia e scarola)",null,null,0.47,0.32,0.85,"ASP",0,34000,0.5,130]
["ORTICOLE","Fagiolino",30,0.75,0.75,0.25,0.75,"ASP",75,9000,0.5,70,"Se da mercato fresco max 50"]
["ORTICOLE","Fagiolo in baccelli da sgranare",60,3.84,3.84,2.06,3.46,"ASP",80,5000,0.5,70]
["ORTICOLE","Fagiolo secco",60,6.6,6.6,3.55,5.9,"ASP",80,3000,0.5,70]
["ORTICOLE","Finocchio",null,null,0.57999999999999996,0.11,0.8,"ASP",0,30000,0.5,240]
["ORTICOLE","Fragola",null,null,0.45,0.23,0.7,"ASP",0,30000,1,160]
["ORTICOLE","Lattuga",null,null,0.31,0.09,0.5,"ASP",0,32000,0.3,130]
["ORTICOLE","Lattuga coltura protetta",null,null,0.31,0.09,0.5,"ASP",0,32000,0.3,130]
["ORTICOLE","Melanzana",null,null,0.52,0.19,0.6,"ASP",0,80000,0.5,175]
["ORTICOLE","Melone",null,null,0.39,0.17,0.5,"ASP",0,40000,0.5,140]
["ORTICOLE","Patata",null,null,0.42,0.16,0.7,"ASP",0,47500,0.67,190]
["ORTICOLE","Peperone",null,null,0.38,0.14000000000000001,0.5,"ASP",0,50000,0.5,200]
["ORTICOLE","Pisello mercato fresco",230,4.75,4.75,0.79,2.2000000000000002,"ASP",85,6000,0.5,30]
["ORTICOLE","Pomodoro da industria",null,null,0.26,0.13,0.3,"ASP",0,70000,0.75,180]
["ORTICOLE","Pomodoro da mensa a pieno campo",null,null,0.26,0.12,0.4,"ASP",0,70000,0.75,180]
["ORTICOLE","Pomodoro da mensa in serra",null,null,0.26,0.1,0.4,"ASP",0,115000,0.75,180]
["ORTICOLE","Porro",null,null,0.38,0.14000000000000001,0.3,"ASP",0,40000,0.5,126]
["ORTICOLE","Prezzemolo",null,null,0.24,0.14000000000000001,0.4,"ASP",0,20000,0.5,100]
["ORTICOLE","Radicchio",null,null,0.46,0.3,0.4,"ASP",0,20000,0.5,190,"Varietà Chioggia max 161"]
["ORTICOLE","Ravanello",null,null,0.46,0.19,0.3,"ASP",0,30000,0.5,80]
["ORTICOLE","Scalogno",null,null,0.27,0.13,0.2,"ASP",0,18500,0.5,120]
["ORTICOLE","Sedano",null,null,0.54,0.2,0.7,"ASP",0,50000,0.5,250]
["ORTICOLE","Spinacio",null,null,0.61,0.18,0.7,"ASP",0,20000,0.5,190,"Se da mercato fresco max 125"]
["ORTICOLE","Verza (cavolo)",null,null,0.55000000000000004,0.2,0.5,"ASP",0,24000,0.5,150]
["ORTICOLE","Verza da industria",null,null,0.41,0.21,0.5,"ASP",0,35000,0.5,150]
["ORTICOLE","Zucca",null,null,0.39,0.1,0.7,"ASP",0,35000,0.5,210]
["ORTICOLE","Zucchino da industria",null,null,0.49,0.17,0.8,"ASP",0,50000,0.5,190]
["ORTICOLE","Zucchino da mercato fresco",null,null,0.44,0.16,0.7,"ASP",0,40000,0.5,190]
["ORTICOLE_PLURIENNALI","Asparago verde (turioni)",null,null,1.41,0.32,0.83,"ASP",0,8000,1,210]
["ORTICOLE_PLURIENNALI","Asparago verde (pianta intera)",null,null,2.56,0.66,2.2400000000000002,"ASS",0,8000,1,210]

{"sheet":"DB_COLTURE_NO_VENETO","index":4,"n_rows":23,"n_cols":14,"rows_kept":23,"cut":false,"hidden":true,"merged":[]}
["Gruppo colturale","Coltura","Fissazione max N","N_coeff_ASS","N_coeff","P2O5_coeff","K2O_coeff","Colonna1","%_azotofissazione","Resa riferimento","coeff_t","MAS_N_max_kg_ha","Note","QUOTA BASE"]
[null,"Actinidia solo frutti",null,null,0.15,0.04,0.3,"ASP",0,30000,1,150,null,80]
[null,"Albicocco solo frutti",null,null,0.09,0.05,0.3,"ASP",null,16000,1,135,null,65]
[null,"Ciliegio solo frutti",null,null,0.13,0.04,0.2,"ASP",null,9000,1,120,null,50]
[null,"Melo solo frutti",null,null,0.06,0.03,0.1,"ASP",null,40000,1,120,null,60]
[null,"Nettarine solo frutti",null,null,0.14000000000000001,0.06,0.3,"ASP",null,25000,1,175,null,75]
[null,"Nocciolo solo frutti",null,null,2.82,0.43,1.2,"ASP",null,1500,1,100,null,30]
[null,"Noce solo frutti",null,null,1.48,0.5,0.4,"ASP",null,4000,1,120,null,30]
[null,"Olivo solo olive",null,null,1,0.23,0.4,"ASP",null,4000,1,130,null,60]
[null,"Pero solo frutti",null,null,0.06,0.03,0.1,"ASP",null,35000,1,120,null,60]
[null,"Pesco solo frutti",null,null,0.13,0.06,0.1,"ASP",null,25000,1,175,null,75]
[null,"Susino solo frutti",null,null,0.09,0.03,0.22,"ASP",null,25000,1,120,null,60]
[null,"Vite per uva da vino (collina e montagna) solo grappoli",null,null,0.27,7.0000000000000007E-2,0.3,"ASP",null,10000,1,100,null,15]
[null,"Vite per uva da vino (pianura) solo grappoli",null,null,0.2,7.0000000000000007E-2,0.3,"ASP",null,20000,1,100,null,15]
["ERBACEE","Avena",null,null,2.2400000000000002,0.67,0.51,"ASP",0,3200,0.6,110]
["ERBACEE","Avena pianta intera",null,null,2.2400000000000002,0.93,2.19,"ASS",0,3200,0.6,110]
["ERBACEE","Farro",null,null,2.57,0.87,0.52,"ASP",0,2000,0.6]
["ERBACEE","Farro (pianta intera)",null,null,2.7,0.98,1.53,"ASS",0,2000,0.6]
["ERBACEE","Segale",null,null,1.93,0.7,0.5,"ASP",0,4000,0.6,120]
["ERBACEE","Segale pianta intera",null,null,2.78,1.23,3.11,"ASS",0,4000,0.6,120]
["ERBACEE","Triticale",null,null,2.54,0.7,0.5,"ASP",0,7500,0.6,150]
["ERBACEE","Triticale pianta intera",null,null,2.54,1.1000000000000001,3,"ASS",0,7500,0.6,150]
["ORTICOLE","Broccoletto di rapa (cime di rapa)",null,null,0.41,0.16,0.49,"ASP",0,0,0.5]

{"sheet":"DB_GIUDIZI_K","index":5,"n_rows":13,"n_cols":6,"rows_kept":13,"cut":false,"hidden":true,"merged":[]}
["USDA","USDA_sigla","INF","SUP"]
["Sabbioso","S",96,144,"Tendenzialmente sabbioso","ppm K2O"]
["Sabbioso Franco","SF",96,144,"Tendenzialmente sabbioso"]
["Limoso","L",120,180,"Franco"]
["Franco Sabbioso","FS",96,144,"Tendenzialmente sabbioso"]
["Franco","F",120,180,"Franco"]
["Franco Limoso","FL",120,180,"Franco"]
["Franco Sabbioso Argilloso","FSA",120,180,"Franco"]
["Franco Argilloso","FA",120,180,"Franco"]
["Franco Argilloso Limoso","FLA",144,216,"Tendenzialmente argilloso"]
["Argilloso Sabbioso","AS",144,216,"Tendenzialmente argilloso"]
["Argilloso Limoso","AL",144,216,"Tendenzialmente argilloso"]
["Argilloso","A",144,216,"Tendenzialmente argilloso"]

{"sheet":"DB_GIUDIZI_P","index":6,"n_rows":3,"n_cols":6,"rows_kept":3,"cut":false,"hidden":true,"merged":[]}
["Metodo P","Limite inferiore Basso","Limite inferiore normalità (ppm)",null,"Limite superiore normalità (ppm)"]
["Olsen",11.45,22.9,34.35,68.7,"ppm P2O5"]
["Bray-Kurtz",28.63,57.25,85.88,171.75]

{"sheet":"DB_PRECESSIONI","index":7,"n_rows":21,"n_cols":2,"rows_kept":21,"cut":false,"hidden":true,"merged":[]}
["Precessione (coltura precedente)","N da residui (kg/ha)"]
["Nessuna/Non Nota"]
["Barbabietola",30]
["Cereali autunno-vernini - paglia asportata",-10]
["Cereali autunno-vernini - paglia interrata",-30]
["Colza",20]
["Girasole",0]
["Mais - stocchi asportati",-10]
["Mais - stocchi interrati",-40]
["Medica in buone condizioni",80]
["Prato polifita con + del 15% di leguminose o medicaio diradato",60]
["Prato polifita con leguminose dal 5 al 15%",40]
["Prato polifita con meno del 5% di leguminose",15]
["Prato di breve durata o trifoglio",30]
["Patata",35]
["Pomodoro, altre orticole (es.: cucurbitacee, crucifere e liliacee)",30]
["Orticole minori a foglia",25]
["Soia",0]
["Leguminose da granella (pisello, fagiolo, lenticchia, ecc.)",40]
["Sorgo",-40]
["Sovescio di leguminose (in copertura autunno-invernale o estiva)",50]

{"sheet":"DB_USDA_MAP","index":8,"n_rows":13,"n_cols":3,"rows_kept":13,"cut":false,"hidden":true,"merged":[]}
["USDA_class","Sigla_predef","Raggruppamento"]
["Sabbioso","S","Tendenzialmente sabbioso"]
["Sabbioso Franco","SF","Tendenzialmente sabbioso"]
["Limoso","L","Franco"]
["Franco Sabbioso","FS","Tendenzialmente sabbioso"]
["Franco","F","Franco"]
["Franco Limoso","FL","Franco"]
["Franco Sabbioso Argilloso","FSA","Franco"]
["Franco Argilloso","FA","Franco"]
["Franco Argilloso Limoso","FLA","Tendenzialmente argilloso"]
["Argilloso Sabbioso","AS","Tendenzialmente argilloso"]
["Argilloso Limoso","AL","Tendenzialmente argilloso"]
["Argilloso","A","Tendenzialmente argilloso"]